[Event "NJSK 2024 AmBm"]
[Site "Groningen, Netherlands"]
[Date "2024.05.03"]
[Round "7.2"]
[White "Feng, Elysia"]
[Black "Verheij, Dana"]
[Result "0-1"]
[TimeControl "90min/40moves + 30min + 30sec/move"]
[WhiteElo "1862"]
[BlackElo "1923"]

1. e4 {[%clk 01:30:59]} c5 {[%clk 01:30:55]} {[%emt 00:00:06]} 2. Nf3 {[%clk
01:31:25]} {[%emt 00:00:04]} d6 {[%clk 01:31:22]} {[%emt 00:00:03]} 3. d4
{[%clk 01:31:49]} {[%emt 00:00:06]} cxd4 {[%clk 01:31:48]} {[%emt 00:00:04]} 4.
Nxd4 {[%clk 01:32:11]} {[%emt 00:00:06]} Nf6 {[%clk 01:32:16]} {[%emt
00:00:03]} 5. Nc3 {[%clk 01:32:32]} {[%emt 00:00:10]} Nc6 {[%clk 01:32:43]}
{[%emt 00:00:03]} 6. Bg5 {[%clk 01:32:55]} {[%emt 00:00:07]} e6 {[%clk
01:33:07]} {[%emt 00:00:06]} 7. Qd2 {[%clk 01:32:51]} {[%emt 00:00:33]} a6
{[%clk 01:33:15]} {[%emt 00:00:23]} 8. f4 {[%clk 01:32:58]} {[%emt 00:00:23]}
h6 {[%clk 01:32:48]} {[%emt 00:00:56]} 9. Bh4 {[%clk 01:31:57]} {[%emt
00:01:31]} Nxe4 {[%clk 01:31:05]} {[%emt 00:02:13]} 10. Nxe4 {[%clk 01:32:17]}
{[%emt 00:00:10]} Qxh4+ {[%clk 01:31:30]} {[%emt 00:00:05]} 11. g3 {[%clk
01:32:19]} {[%emt 00:00:28]} Qd8 {[%clk 01:30:16]} {[%emt 00:01:45]} 12. O-O-O
{[%clk 01:32:21]} {[%emt 00:00:28]} d5 {[%clk 01:28:53]} {[%emt 00:01:53]} 13.
Nc3 {[%clk 01:23:24]} {[%emt 00:09:27]} Be7 {[%clk 01:26:49]} {[%emt 00:02:34]}
14. Kb1 {[%clk 01:14:20]} {[%emt 00:09:32]} Bf6 {[%clk 01:21:31]} {[%emt
00:05:49]} 15. Nf3 {[%clk 01:14:35]} {[%emt 00:00:15]} Qa5 {[%clk 01:11:32]}
{[%emt 00:10:30]} 16. Ne2 {[%clk 01:11:51]} {[%emt 00:03:13]} Qxd2 {[%clk
01:08:55]} {[%emt 00:03:08]} 17. Rxd2 {[%clk 01:12:02]} {[%emt 00:00:18]} Bd7
{[%clk 01:07:52]} {[%emt 00:01:33]} 18. Bg2 {[%clk 01:09:46]} {[%emt 00:02:46]}
O-O-O {[%clk 01:04:33]} {[%emt 00:03:49]} 19. Rhd1 {[%clk 01:09:34]} {[%emt
00:00:41]} Na5 {[%clk 01:02:54]} {[%emt 00:02:10]} 20. Ned4 {[%clk 01:05:50]}
{[%emt 00:04:13]} Nc4 {[%clk 01:00:25]} {[%emt 00:03:00]} 21. Rd3 {[%clk
01:03:51]} {[%emt 00:02:29]} Kb8 {[%clk 00:58:57]} {[%emt 00:01:58]} 22. Bf1
{[%clk 00:53:04]} {[%emt 00:11:16]} Rc8 {[%clk 00:57:24]} {[%emt 00:02:05]} 23.
c3 {[%clk 00:48:27]} {[%emt 00:05:06]} g5 {[%clk 00:50:11]} {[%emt 00:07:43]}
24. Nd2 {[%clk 00:43:24]} {[%emt 00:05:33]} Nd6 {[%clk 00:46:24]} {[%emt
00:04:17]} 25. Rf3 {[%clk 00:41:43]} {[%emt 00:02:10]} g4 {[%clk 00:44:16]}
{[%emt 00:02:39]} 26. Rd3 {[%clk 00:40:02]} {[%emt 00:02:10]} h5 {[%clk
00:40:51]} {[%emt 00:03:56]} 27. h4 {[%clk 00:34:38]} {[%emt 00:05:55]} gxh3
{[%clk 00:36:09]} {[%emt 00:22:55]} 28. Bxh3 {[%clk 00:34:44]} Rcg8 {[%clk
00:34:49]} 29. Rh1 {[%clk 00:28:45]} Kc7 {[%clk 00:31:03]} 30. Rd1 {[%clk
00:34:44]} {[%emt 00:00:11]} Kb8 {[%clk 00:34:49]} 31. Rh1 {[%clk 00:28:45]}
Kc7 {[%clk 00:31:03]} 32. Re3 {[%clk 00:22:02]} {[%emt 00:02:16]} Rg7 {[%clk
00:28:31]} {[%emt 00:03:03]} 33. Rf1 {[%clk 00:18:21]} {[%emt 00:04:10]} Rhg8
{[%clk 00:26:20]} {[%emt 00:02:41]} 34. Rff3 {[%clk 00:18:26]} {[%emt
00:00:25]} Ne4 {[%clk 00:19:24]} {[%emt 00:07:26]} 35. Nxe4 {[%clk 00:17:32]}
{[%emt 00:01:24]} dxe4 {[%clk 00:19:51]} {[%emt 00:00:03]} 36. Rxe4 {[%clk
00:17:49]} {[%emt 00:00:14]} Rxg3 {[%clk 00:20:14]} {[%emt 00:00:06]} 37. Ree3
{[%clk 00:17:55]} {[%emt 00:00:24]} h4 {[%clk 00:14:34]} {[%emt 00:06:10]} 38.
Ne2 {[%clk 00:15:33]} {[%emt 00:02:53]} Rxf3 {[%clk 00:12:37]} {[%emt
00:02:27]} 39. Rxf3 {[%clk 00:16:01]} {[%emt 00:00:01]} Bb5 {[%clk 00:12:19]}
{[%emt 00:00:48]} 40. Bf1 {[%clk 00:15:31]} {[%emt 00:01:00]} Bc6 {[%clk
00:10:29]} {[%emt 00:02:20]} 41. Rf2 {[%clk 00:15:20]} {[%emt 00:00:40]} Rd8
{[%clk 00:07:09]} {[%emt 00:03:50]} 42. Kc1 {[%clk 00:15:06]} {[%emt 00:00:45]}
Kb6 {[%clk 00:02:43]} {[%emt 00:04:56]} 43. Ng1 {[%clk 00:13:39]} {[%emt
00:01:56]} Be4 {[%clk 00:00:33]} {[%emt 00:02:40]} 44. Nf3 {[%clk 00:13:25]}
{[%emt 00:00:44]} Kc5 {[%clk 00:27:16]} {[%emt 00:03:47]} 45. Ng5 {[%clk
00:43:18]} {[%emt 00:00:36]} Bxg5 {[%clk 00:16:48]} {[%emt 00:10:59]} 46. fxg5
{[%clk 00:43:46]} {[%emt 00:00:02]} Bf5 {[%clk 00:16:44]} {[%emt 00:00:34]} 47.
Rh2 {[%clk 00:43:38]} {[%emt 00:00:38]} h3 {[%clk 00:15:40]} {[%emt 00:01:34]}
48. Rh1 {[%clk 00:43:36]} {[%emt 00:00:32]} Rg8 {[%clk 00:11:04]} {[%emt
00:05:06]} 49. Bxh3 {[%clk 00:43:51]} {[%emt 00:00:15]} Bxh3 {[%clk 00:11:28]}
{[%emt 00:00:06]} 50. Rxh3 {[%clk 00:44:17]} {[%emt 00:00:03]} Rxg5 {[%clk
00:11:44]} {[%emt 00:00:15]} 51. Rh7 {[%clk 00:44:28]} {[%emt 00:00:19]} Rf5
{[%clk 00:11:47]} {[%emt 00:00:26]} 52. Kd2 {[%clk 00:44:52]} {[%emt 00:00:06]}
b5 {[%clk 00:10:16]} {[%emt 00:02:02]} 53. Ke3 {[%clk 00:43:52]} {[%emt
00:01:31]} Rf1 {[%clk 00:08:36]} {[%emt 00:02:10]} 54. b3 {[%clk 00:43:01]}
{[%emt 00:01:21]} Kd5 {[%clk 00:08:10]} {[%emt 00:00:55]} 55. Rg7 {[%clk
00:43:13]} {[%emt 00:00:18]} e5 {[%clk 00:07:55]} {[%emt 00:00:45]} 56. Ke2
{[%clk 00:42:59]} {[%emt 00:00:44]} Rf4 {[%clk 00:07:53]} {[%emt 00:00:29]} 57.
Ke3 {[%clk 00:43:22]} {[%emt 00:00:10]} f5 {[%clk 00:07:29]} {[%emt 00:00:54]}
58. Ra7 {[%clk 00:43:41]} {[%emt 00:00:11]} Rh4 {[%clk 00:07:02]} {[%emt
00:00:56]} 59. Rxa6 {[%clk 00:43:22]} {[%emt 00:00:50]} f4+ {[%clk 00:07:01]}
{[%emt 00:00:31]} 60. Ke2 {[%clk 00:43:07]} {[%emt 00:00:45]} Ke4 {[%clk
00:06:23]} {[%emt 00:01:08]} 61. a4 {[%clk 00:42:51]} {[%emt 00:00:46]} Rh2+
{[%clk 00:05:15]} {[%emt 00:01:37]} 62. Kf1 {[%clk 00:43:10]} {[%emt 00:00:12]}
bxa4 {[%clk 00:03:43]} {[%emt 00:02:01]} 63. Rxa4+ {[%clk 00:43:39]} {[%emt
00:00:02]} Kd3 {[%clk 00:03:20]} {[%emt 00:00:53]} 64. c4 {[%clk 00:44:02]}
{[%emt 00:00:08]} e4 {[%clk 00:03:16]} {[%emt 00:00:34]} 65. Ra8 {[%clk
00:43:12]} {[%emt 00:01:20]} f3 {[%clk 00:01:47]} {[%emt 00:01:58]} 66. Rf8
{[%clk 00:43:38]} {[%emt 00:00:04]} Ke3 {[%clk 00:02:01]} {[%emt 00:00:17]} 67.
Kg1 {[%clk 00:44:00]} {[%emt 00:00:07]} Rb2 {[%clk 00:02:21]} {[%emt 00:00:10]}
68. c5 {[%clk 00:44:14]} {[%emt 00:00:16]} Rxb3 {[%clk 00:02:09]} {[%emt
00:00:42]} 69. c6 {[%clk 00:44:38]} {[%emt 00:00:06]} Rc3 {[%clk 00:02:30]}
{[%emt 00:00:09]} 70. Rf6 {[%clk 00:44:48]} {[%emt 00:00:20]} Kd4 {[%clk
00:02:39]} {[%emt 00:00:21]} 71. Kf2 {[%clk 00:45:00]} {[%emt 00:00:18]} Kd5
{[%clk 00:02:53]} {[%emt 00:00:15]} 72. Rf5+ {[%clk 00:45:01]} {[%emt
00:00:30]} Kxc6 {[%clk 00:03:12]} {[%emt 00:00:11]} 73. Re5 {[%clk 00:45:24]}
{[%emt 00:00:07]} Rc4 {[%clk 00:03:30]} {[%emt 00:00:11]} 74. Ke3 {[%clk
00:45:40]} {[%emt 00:00:15]} Kd6 {[%clk 00:03:42]} {[%emt 00:00:19]} 75. Rf5
{[%clk 00:46:00]} {[%emt 00:00:10]} Rc5 {[%clk 00:03:10]} {[%emt 00:01:01]} 76.
Rf8 {[%clk 00:45:44]} {[%emt 00:00:45]} Re5 {[%clk 00:02:28]} {[%emt 00:01:13]}
77. Rd8+ {[%clk 00:45:51]} {[%emt 00:00:23]} Kc5 {[%clk 00:02:25]} {[%emt
00:00:32]} 78. Rc8+ {[%clk 00:46:09]} {[%emt 00:00:13]} Kd6 {[%clk 00:02:46]}
{[%emt 00:00:10]} 79. Rd8+ {[%clk 00:46:27]} {[%emt 00:00:12]} Ke6 {[%clk
00:03:07]} {[%emt 00:00:07]} 80. Re8+ {[%clk 00:46:39]} {[%emt 00:00:19]} Kf5
{[%clk 00:03:27]} {[%emt 00:00:10]} 81. Rf8+ {[%clk 00:47:02]} {[%emt
00:00:07]} Kg4 {[%clk 00:03:26]} {[%emt 00:00:30]} 82. Rg8+ {[%clk 00:47:29]}
{[%emt 00:00:04]} Kh3 {[%clk 00:03:22]} {[%emt 00:00:30]} 83. Rg7 {[%clk
00:47:23]} {[%emt 00:00:39]} Re8 {[%clk 00:03:03]} {[%emt 00:00:49]} 84. Rg6
{[%clk 00:47:42]} {[%emt 00:00:12]} Rf8 {[%clk 00:01:34]} {[%emt 00:01:59]} 85.
Rh6 {[%clk 00:46:51]} {[%emt 00:01:21]} Kg4 {[%clk 00:01:34]} {[%emt 00:00:30]}
86. Rg6+ {[%clk 00:47:15]} {[%emt 00:00:05]} Kf5 {[%clk 00:01:00]} {[%emt
00:01:05]} 87. Rg7 {[%clk 00:47:42]} {[%emt 00:00:03]} Ke6 {[%clk 00:01:11]}
{[%emt 00:00:19]} 88. Kf2 {[%clk 00:47:51]} {[%emt 00:00:21]} e3+ {[%clk
00:01:09]} {[%emt 00:00:32]} 0-1

[Event "NJSK 2024 AmBm"]
[Site "Groningen, Netherlands"]
[Date "2024.05.03"]
[Round "7.3"]
[White "Kulikova, Polina"]
[Black "Gergin, Isafara"]
[Result "1/2-1/2"]
[TimeControl "90min/40moves + 30min + 30sec/move"]
[WhiteElo "1690"]
[BlackElo "1888"]

1. d4 {[%clk 01:30:57]} {[%emt 00:20:16]} Nf6 {[%clk 01:30:54]} 2. c4 {[%clk
01:31:23]} g6 {[%clk 01:31:21]} 3. Nc3 {[%clk 01:31:48]} Bg7 {[%clk 01:31:46]}
4. e4 {[%clk 01:32:14]} d6 {[%clk 01:32:11]} 5. h3 {[%clk 01:32:41]} O-O {[%clk
01:32:33]} 6. Be3 {[%clk 01:33:06]} Nbd7 {[%clk 01:32:32]} 7. g4 {[%clk
01:32:50]} c5 {[%clk 01:31:10]} 8. Nf3 {[%clk 01:30:52]} a6 {[%clk 01:26:51]} 9.
Qd2 {[%clk 01:24:10]} cxd4 {[%clk 01:22:35]} 10. Nxd4 {[%clk 01:23:20]} Nc5
{[%clk 01:22:05]} 11. Bg2 {[%clk 01:21:46]} Qc7 {[%clk 01:19:34]} 12. Rc1
{[%clk 01:16:11]} Ne6 {[%clk 01:14:54]} 13. Nd5 {[%clk 01:12:43]} Qd8 {[%clk
01:12:26]} 14. O-O {[%clk 01:09:53]} Rb8 {[%clk 01:05:44]} 15. Rfd1 {[%clk
00:57:02]} Nxd5 {[%clk 00:59:34]} 16. Nxe6 {[%clk 00:49:57]} Bxe6 {[%clk
00:59:58]} 17. cxd5 {[%clk 00:45:20]} Bd7 {[%clk 01:00:06]} 18. Bd4 {[%clk
00:36:00]} Bxd4 {[%clk 00:58:54]} 19. Qxd4 {[%clk 00:36:26]} Qa5 {[%clk
00:58:23]} 20. a3 {[%clk 00:33:27]} b5 {[%clk 00:53:37]} 21. b4 {[%clk
00:24:44]} Qa4 {[%clk 00:50:20]} 22. Rd3 {[%clk 00:21:49]} Rbc8 {[%clk
00:46:26]} 23. Rdc3 {[%clk 00:19:30]} Rc4 {[%clk 00:43:13]} 24. Rxc4 {[%clk
00:18:29]} bxc4 {[%clk 00:43:16]} 25. Rc3 {[%clk 00:16:22]} a5 {[%clk
00:29:55]} {[%emt 00:04:41]} 26. Qxc4 {[%clk 00:14:29]} {[%emt 00:02:24]} axb4
{[%clk 00:26:50]} {[%emt 00:03:35]} 27. Qxb4 {[%clk 00:13:12]} {[%emt
00:01:46]} Qd1+ {[%clk 00:26:08]} {[%emt 00:01:12]} 28. Bf1 {[%clk 00:09:36]}
{[%emt 00:04:05]} h5 {[%clk 00:23:34]} {[%emt 00:03:05]} 29. gxh5 {[%clk
00:08:56]} {[%emt 00:01:10]} Qxh5 {[%clk 00:23:27]} {[%emt 00:00:37]} 30. Qb7
{[%clk 00:06:44]} {[%emt 00:02:41]} Rd8 {[%clk 00:22:23]} {[%emt 00:01:35]} 31.
Qb6 {[%clk 00:06:14]} {[%emt 00:00:57]} Re8 {[%clk 00:20:09]} {[%emt 00:02:46]}
32. Qa7 {[%clk 00:05:58]} {[%emt 00:00:47]} Bc8 {[%clk 00:17:43]} {[%emt
00:02:56]} 33. Qb8 {[%clk 00:04:22]} {[%emt 00:02:07]} Bd7 {[%clk 00:17:56]}
{[%emt 00:00:16]} 34. Qb7 {[%clk 00:04:13]} {[%emt 00:00:37]} Rd8 {[%clk
00:17:26]} {[%emt 00:01:01]} 35. Rg3 {[%clk 00:03:48]} {[%emt 00:00:55]} Kf8
{[%clk 00:15:43]} {[%emt 00:02:13]} 36. Qb4 {[%clk 00:03:41]} {[%emt 00:00:37]}
Qe5 {[%clk 00:14:15]} {[%emt 00:01:59]} 37. a4 {[%clk 00:02:53]} {[%emt
00:01:18]} Qa1 {[%clk 00:12:46]} {[%emt 00:01:58]} 38. a5 {[%clk 00:02:32]}
{[%emt 00:00:51]} Rc8 {[%clk 00:12:16]} {[%emt 00:01:00]} 39. Ra3 {[%clk
00:02:21]} {[%emt 00:00:41]} Qd1 {[%clk 00:11:21]} {[%emt 00:01:24]} 40. Rc3
{[%clk 00:01:05]} {[%emt 00:01:47]} Rxc3 {[%clk 00:10:33]} {[%emt 00:01:19]} 41.
Qxc3 {[%clk 00:01:32]} {[%emt 00:00:03]} f6 {[%clk 00:09:45]} {[%emt 00:01:18]}
42. Qd3 {[%clk 00:24:50]} {[%emt 00:07:12]} Qa1 {[%clk 00:32:49]} {[%emt
00:07:26]} 43. a6 {[%clk 00:23:54]} {[%emt 00:01:26]} Kf7 {[%clk 00:32:21]}
{[%emt 00:00:58]} 44. Kg2 {[%clk 00:16:42]} {[%emt 00:07:41]} Bc8 {[%clk
00:32:24]} {[%emt 00:00:27]} 45. Qc4 {[%clk 00:13:38]} {[%emt 00:03:33]} Bd7
{[%clk 00:30:47]} {[%emt 00:02:09]} 46. Be2 {[%clk 00:09:45]} {[%emt 00:04:23]}
Qa3 {[%clk 00:28:39]} {[%emt 00:02:38]} 47. f3 {[%clk 00:06:41]} {[%emt
00:03:33]} Qe3 {[%clk 00:25:19]} {[%emt 00:03:50]} 48. h4 {[%clk 00:04:45]}
{[%emt 00:02:26]} Qa7 {[%clk 00:23:15]} {[%emt 00:02:35]} 49. Qd3 {[%clk
00:03:42]} {[%emt 00:01:33]} Bc8 {[%clk 00:22:45]} {[%emt 00:01:00]} 50. Kf1
{[%clk 00:03:32]} {[%emt 00:00:40]} Bh3+ {[%clk 00:20:01]} {[%emt 00:03:14]} 51.
Ke1 {[%clk 00:03:56]} {[%emt 00:00:05]} Bc8 {[%clk 00:20:23]} {[%emt 00:00:08]}
52. Kd2 {[%clk 00:03:47]} {[%emt 00:00:40]} Qb6 {[%clk 00:19:26]} {[%emt
00:01:27]} 53. Qc4 {[%clk 00:03:24]} {[%emt 00:00:52]} Qb2+ {[%clk 00:17:20]}
{[%emt 00:02:37]} 54. Ke3 {[%clk 00:03:29]} {[%emt 00:00:21]} Qb6+ {[%clk
00:15:26]} {[%emt 00:02:27]} 55. Qd4 {[%clk 00:03:37]} {[%emt 00:00:21]} Qb3+
{[%clk 00:15:38]} {[%emt 00:00:20]} 56. Kf2 {[%clk 00:03:57]} {[%emt 00:00:08]}
Bxa6 {[%clk 00:14:49]} {[%emt 00:01:21]} 1/2-1/2

[Event "NJSK 2024 AmBm"]
[Site "Groningen, Netherlands"]
[Date "2024.05.03"]
[Round "7.4"]
[White "Knobbe, Elise"]
[Black "Damen, Josephine"]
[Result "0-1"]
[TimeControl "90min/40moves + 30min + 30sec/move"]
[WhiteElo "1785"]
[BlackElo "1890"]

1. e4 {[%clk 01:30:57]} {[%emt 00:00:03]} e5 {[%clk 01:30:56]} {[%emt
00:00:05]} 2. Nc3 {[%clk 01:31:23]} {[%emt 00:00:04]} Nf6 {[%clk 01:31:22]}
{[%emt 00:00:04]} 3. g3 {[%clk 01:31:49]} {[%emt 00:00:04]} d5 {[%clk
01:31:48]} {[%emt 00:00:04]} 4. exd5 {[%clk 01:32:15]} {[%emt 00:00:04]} Nxd5
{[%clk 01:32:12]} {[%emt 00:00:06]} 5. Bg2 {[%clk 01:32:41]} {[%emt 00:00:04]}
Nxc3 {[%clk 01:32:36]} {[%emt 00:00:06]} 6. bxc3 {[%clk 01:33:07]} {[%emt
00:00:05]} Bd6 {[%clk 01:33:00]} {[%emt 00:00:05]} 7. Nf3 {[%clk 01:32:56]}
{[%emt 00:00:41]} O-O {[%clk 01:32:48]} {[%emt 00:00:42]} 8. O-O {[%clk
01:32:43]} {[%emt 00:00:43]} Nc6 {[%clk 01:33:07]} {[%emt 00:00:11]} 9. d3
{[%clk 01:32:18]} {[%emt 00:00:55]} Bg4 {[%clk 01:30:54]} {[%emt 00:02:42]} 10.
h3 {[%clk 01:30:10]} {[%emt 00:02:39]} Bh5 {[%clk 01:31:17]} {[%emt 00:00:07]}
11. Qe1 {[%emt 00:12:59]} f5 {[%clk 01:26:25]} 12. Nd2 {[%clk 01:11:34]} {[%emt
00:11:59]} Qd7 {[%clk 01:16:48]} {[%emt 00:10:06]} 13. Nc4 {[%clk 01:08:00]}
{[%emt 00:04:04]} Rae8 {[%clk 00:57:42]} {[%emt 00:19:36]} 14. Qd2 {[%clk
01:01:14]} {[%emt 00:07:16]} f4 {[%clk 00:45:13]} {[%emt 00:12:59]} 15. Nxd6
{[%clk 00:56:37]} {[%emt 00:05:07]} cxd6 {[%clk 00:44:36]} {[%emt 00:01:07]} 16.
gxf4 {[%clk 00:49:06]} {[%emt 00:08:02]} exf4 {[%clk 00:40:03]} {[%emt
00:05:01]} 17. f3 {[%clk 00:48:06]} {[%emt 00:01:30]} Ne5 {[%clk 00:32:35]}
{[%emt 00:07:59]} 18. Qf2 {[%clk 00:41:19]} {[%emt 00:07:17]} Re6 {[%clk
00:20:54]} {[%emt 00:12:11]} 19. Qh4 {[%clk 00:34:36]} {[%emt 00:18:07]} Rh6
{[%clk 00:20:47]} 20. d4 {[%clk 00:31:11]} Bxf3 {[%clk 00:18:02]} 0-1

[Event "NJSK 2024 AmBm"]
[Site "Groningen, Netherlands"]
[Date "2024.05.03"]
[Round "7.5"]
[White "Basa, Manasvita"]
[Black "Oostinga, Elisa"]
[Result "1-0"]
[TimeControl "90min/40moves + 30min + 30sec/move"]
[WhiteElo "1829"]
[BlackElo "1713"]

1. e4 {[%clk 01:30:57]} {[%emt 00:00:14]} c6 {[%clk 01:30:53]} 2. d4 {[%clk
01:31:23]} d5 {[%clk 01:31:16]} 3. f3 {[%clk 01:31:48]} e6 {[%clk 01:29:18]} 4.
Bf4 {[%clk 01:28:53]} Nf6 {[%clk 01:22:17]} 5. Nc3 {[%clk 01:28:53]} Be7 {[%clk
01:14:42]} 6. Qd2 {[%clk 01:25:23]} a6 {[%clk 01:08:01]} 7. Be2 {[%clk
01:07:11]} O-O {[%clk 00:46:24]} 8. g4 {[%clk 01:05:45]} c5 {[%clk 00:44:56]} 9.
dxc5 {[%clk 00:59:45]} Bxc5 {[%clk 00:44:59]} 10. g5 {[%clk 00:57:35]} Nh5
{[%clk 00:34:09]} 11. exd5 {[%clk 00:57:25]} Nxf4 {[%clk 00:32:44]} 12. Qxf4
{[%clk 00:57:46]} exd5 {[%clk 00:30:09]} 13. O-O-O {[%clk 00:57:45]} d4 {[%clk
00:28:15]} 14. Ne4 {[%clk 00:57:39]} Bb6 {[%clk 00:27:44]} 15. Nf6+ {[%clk
00:53:09]} Kh8 {[%clk 00:26:57]} 16. Bd3 {[%clk 00:51:37]} Nd7 {[%clk
00:10:00]} 17. Nxh7 {[%clk 00:51:04]} Bc5 {[%clk 00:04:55]} 18. Nxf8 {[%clk
00:42:52]} Nxf8 {[%clk 00:05:11]} 19. h4 {[%clk 00:42:43]} Be6 {[%clk
00:04:22]} 20. h5 {[%clk 00:42:36]} Rc8 {[%clk 00:03:02]} {[%emt 00:00:15]} 21.
h6 {[%clk 00:29:28]} {[%emt 00:13:38]} g6 {[%clk 00:03:04]} {[%emt 00:00:28]}
22. Qe5+ {[%clk 00:29:17]} {[%emt 00:00:40]} 1-0

[Event "NJSK 2024 AmBm"]
[Site "Groningen, Netherlands"]
[Date "2024.05.03"]
[Round "7.6"]
[White "Liu, Chia-Yun"]
[Black "Ganeshram, Nirupa"]
[Result "1/2-1/2"]
[TimeControl "90min/40moves + 30min + 30sec/move"]
[WhiteElo "1704"]
[BlackElo "1696"]

1. e4 {[%clk 01:30:50]} {[%emt 00:00:18]} c5 {[%clk 01:30:53]} 2. Nf3 {[%clk
01:31:06]} d6 {[%clk 01:31:11]} 3. d4 {[%clk 01:31:12]} cxd4 {[%clk 01:31:25]}
4. Nxd4 {[%clk 01:31:27]} Nf6 {[%clk 01:31:41]} 5. Nc3 {[%clk 01:30:55]} g6
{[%clk 01:31:52]} 6. Be3 {[%clk 01:30:45]} Nc6 {[%clk 01:31:37]} 7. f3 {[%clk
01:21:06]} Bg7 {[%clk 01:30:30]} 8. Qd2 {[%clk 01:20:29]} O-O {[%clk 01:28:17]}
9. g4 {[%clk 01:18:48]} e6 {[%clk 01:17:09]} 10. O-O-O {[%clk 01:16:45]} d5
{[%clk 01:13:45]} 11. exd5 {[%clk 00:54:46]} Nxd5 {[%clk 01:09:42]} 12. Nxd5
{[%clk 00:49:57]} Qxd5 {[%clk 01:08:04]} 13. Nxc6 {[%clk 00:48:26]} bxc6 {[%clk
01:04:45]} 14. Qxd5 {[%clk 00:48:06]} cxd5 {[%clk 01:04:55]} 15. h4 {[%clk
00:45:25]} Bb7 {[%clk 01:02:35]} 16. Be2 {[%clk 00:41:06]} a5 {[%clk 00:58:50]}
17. Rhe1 {[%clk 00:37:09]} Rfb8 {[%clk 00:40:31]} 18. c3 {[%clk 00:34:50]} a4
{[%clk 00:38:27]} 19. Bd4 {[%clk 00:32:36]} e5 {[%clk 00:33:17]} 20. Bc5 {[%clk
00:31:44]} Rc8 {[%clk 00:31:45]} 21. Bb4 {[%clk 00:28:29]} Rab8 {[%clk
00:29:18]} 22. a3 {[%clk 00:26:57]} d4 {[%clk 00:22:43]} 23. Kc2 {[%clk
00:22:53]} {[%emt 00:02:44]} Bd5 {[%clk 00:20:10]} {[%emt 00:03:03]} 24. Kb1
{[%clk 00:20:32]} {[%emt 00:02:51]} e4 {[%clk 00:14:47]} {[%emt 00:05:53]} 25.
cxd4 {[%clk 00:14:55]} {[%emt 00:06:06]} Bb3 {[%clk 00:13:49]} {[%emt
00:01:29]} 26. Rd2 {[%clk 00:13:05]} {[%emt 00:02:20]} e3 {[%clk 00:13:52]}
{[%emt 00:00:27]} 27. Rdd1 {[%clk 00:10:41]} {[%emt 00:02:54]} Bc2+ {[%clk
00:13:56]} {[%emt 00:00:26]} 28. Ka2 {[%clk 00:10:14]} {[%emt 00:00:57]} Bxd1
{[%clk 00:14:09]} {[%emt 00:00:16]} 29. Bxd1 {[%clk 00:09:29]} {[%emt
00:01:16]} Bxd4 {[%clk 00:13:30]} {[%emt 00:01:09]} 30. Bxa4 {[%clk 00:09:40]}
{[%emt 00:00:19]} Ra8 {[%clk 00:11:27]} {[%emt 00:02:33]} 31. Bb3 {[%clk
00:09:17]} {[%emt 00:00:53]} Re8 {[%clk 00:10:50]} {[%emt 00:01:07]} 32. Kb1
{[%clk 00:08:46]} {[%emt 00:01:01]} Rac8 {[%clk 00:08:58]} {[%emt 00:02:23]} 33.
Bd5 {[%clk 00:08:41]} {[%emt 00:00:34]} Rc7 {[%clk 00:07:57]} {[%emt 00:01:31]}
34. Be4 {[%clk 00:08:31]} {[%emt 00:00:40]} Rec8 {[%clk 00:06:14]} {[%emt
00:02:13]} 35. Bd6 {[%clk 00:07:50]} {[%emt 00:01:11]} Rc4 {[%clk 00:05:23]}
{[%emt 00:01:22]} 36. Bf4 {[%clk 00:07:07]} {[%emt 00:01:12]} Kg7 {[%clk
00:03:43]} {[%emt 00:02:09]} 37. Bxe3 {[%clk 00:05:43]} {[%emt 00:01:55]} Bxe3
{[%clk 00:03:51]} {[%emt 00:00:22]} 38. Rxe3 {[%clk 00:06:07]} {[%emt
00:00:06]} Rc1+ {[%clk 00:03:30]} {[%emt 00:00:51]} 39. Ka2 {[%clk 00:06:29]}
{[%emt 00:00:08]} Rh1 {[%clk 00:03:03]} {[%emt 00:00:57]} 40. b4 {[%clk
00:06:16]} {[%emt 00:00:43]} Re8 {[%clk 00:02:39]} {[%emt 00:00:54]} 41. Rc3
{[%clk 00:05:28]} {[%emt 00:01:18]} Rxh4 {[%clk 00:02:05]} {[%emt 00:01:05]} 42.
b5 {[%clk 00:04:26]} {[%emt 00:01:31]} Rb8 {[%clk 00:00:49]} {[%emt 00:01:46]}
43. a4 {[%clk 00:00:51]} {[%emt 00:04:05]} f5 {[%clk 00:28:34]} {[%emt
00:02:45]} 44. gxf5 {[%clk 00:24:07]} {[%emt 00:07:14]} gxf5 {[%clk 00:28:39]}
{[%emt 00:00:24]} 45. Bxf5 {[%clk 00:17:08]} {[%emt 00:07:30]} Rxa4+ {[%clk
00:28:49]} {[%emt 00:00:20]} 46. Kb3 {[%clk 00:17:17]} {[%emt 00:00:21]} Rxb5+
{[%clk 00:25:17]} {[%emt 00:04:03]} 47. Kxa4 {[%clk 00:17:32]} {[%emt
00:00:14]} Rxf5 {[%clk 00:25:42]} {[%emt 00:00:05]} 48. Kb3 {[%clk 00:17:13]}
{[%emt 00:00:50]} h5 {[%clk 00:25:54]} {[%emt 00:00:18]} 49. Kc2 {[%clk
00:17:05]} {[%emt 00:00:37]} h4 {[%clk 00:24:18]} {[%emt 00:02:06]} 50. Kd2
{[%clk 00:16:30]} {[%emt 00:01:05]} Kg6 {[%clk 00:24:01]} {[%emt 00:00:47]} 51.
Ke2 {[%clk 00:16:16]} {[%emt 00:00:44]} Kg5 {[%clk 00:23:26]} {[%emt 00:01:05]}
52. Kf2 {[%clk 00:15:23]} {[%emt 00:01:23]} Ra5 {[%clk 00:23:19]} {[%emt
00:00:37]} 53. Kg2 {[%clk 00:14:41]} {[%emt 00:01:12]} Rb5 {[%clk 00:22:58]}
{[%emt 00:00:51]} 1/2-1/2